fUSD/lending_fUSD_20260601
["ID","MTS","AMOUNT","RATE_DAILY","PERIOD"]
[423594746,1780254640000,-1199.89,0.00019,2]
[423594748,1780254640000,-594.65428589,0.00019,2]
[423594667,1780254640000,-222.6,0.00014884,2]
[423594738,1780254640000,-3167.86695058,0.00018754,2]
[423594708,1780254640000,-350.0,0.00018,2]
[423594721,1780254640000,-450.7,0.0001841,2]
[423594710,1780254640000,-790.99941994,0.000182,2]
[423594674,1780254640000,-450.31,0.00015387,2]
[423594676,1780254640000,-1865.36,0.00015428,2]
[423594678,1780254640000,-166.66,0.00015638,2]
[423594680,1780254640000,-300.0,0.00016,2]
[423594713,1780254640000,-2213.02,0.00018211,2]
[423594684,1780254640000,-275.965266,0.00016438,2]
[423594691,1780254640000,-2000.0,0.00016488,2]
[423594696,1780254640000,-3167.86695058,0.00016559,2]
[423594682,1780254640000,-450.7,0.00016438,2]
[423594700,1780254640000,-450.31,0.00016757,2]
[423594702,1780254640000,-166.66,0.0001683,2]
[423594704,1780254640000,-186.1,0.00016878,2]
[423594714,1780254640000,-2000.0,0.0001832,2]
[423594716,1780254640000,-403.71169975,0.00018325,2]
[423594706,1780254640000,-790.99941994,0.00018,2]
[423594698,1780254640000,-168.2,0.00016712,2]
[423594755,1780254641000,-860.66,0.00013698,2]
[423594749,1780254641000,-860.66,0.00013698,2]
[423594752,1780254641000,-860.66,0.00013698,2]
[423594753,1780254641000,-860.66,0.00013698,2]
[423594751,1780254641000,-429.14511461,0.00013698,2]
[423594750,1780254641000,-431.51488539,0.00013698,2]
[423594754,1780254641000,-860.66,0.00013698,2]
[423594756,1780254641000,-860.66,0.00013698,2]
[423594765,1780254641000,-6339.82412773,0.00019,2]
[423594757,1780254641000,-860.66,0.00013698,2]
[423594759,1780254641000,-833.51812593,0.00013698,2]
[423594761,1780254641000,-860.66,0.00013698,2]
[423594762,1780254641000,-14103.95155121,0.00019,2]
[423594760,1780254641000,-27.14187407,0.00013698,2]
[423594763,1780254641000,-396.77323201,0.00019,2]
[423594764,1780254641000,-860.66,0.00013698,2]
[423594758,1780254641000,-860.66,0.00013698,2]
[423594777,1780254643000,-860.66,0.00013698,2]
[423594776,1780254643000,-860.66,0.00013698,2]
[423594779,1780254643000,-860.66,0.00013698,2]
[423594778,1780254643000,-860.66,0.00013698,2]
[423594781,1780254643000,-692.53807337,0.000149,2]
[423594782,1780254643000,-20890.00896936,0.00019,2]
[423594783,1780254643000,-47611.64112624,0.00019,2]
[423594784,1780254643000,-764.84934196,0.00019,2]
[423594785,1780254643000,-1336.75890137,0.00019,2]
[423594780,1780254643000,-860.66,0.00013698,2]
[423594795,1780254645000,-169.98593788,0.00019,2]
[423594794,1780254645000,-3022.07612615,0.00019,2]
[423594796,1780254656000,152.0,0.00029517,120]
[423594797,1780254666000,2000.0,0.0002991,120]
[423594798,1780254685000,-500.0,9.954e-05,2]
[423594799,1780254826000,-647.31208949,9.954e-05,2]
[423594800,1780254826000,-168.88144024,9.954e-05,2]
[423594803,1780254826000,-602.81514533,9.975e-05,2]
[423594802,1780254826000,-44.49694416,9.954e-05,2]
[423594801,1780254826000,-478.43064925,9.954e-05,2]
[423594806,1780254827000,-335.31208949,9.975e-05,2]
[423594804,1780254827000,-162.0,9.954e-05,2]
[423594805,1780254827000,-150.0,9.974e-05,2]
[423594808,1780254829000,-647.31208949,9.975e-05,2]
[423594807,1780254829000,-647.31208949,9.975e-05,2]
[423594811,1780254830000,-647.31208949,9.875e-05,2]
[423594810,1780254830000,-647.31208949,9.875e-05,2]
[423594809,1780254830000,-647.31208949,9.875e-05,2]
[423594812,1780254831000,-647.31208949,9.677e-05,2]
[423594814,1780254915000,500.0,0.0003013,120]
[423594815,1780255072000,177.77,5e-05,120]
[423594816,1780255085000,2500.0,0.00030137,120]
[423594817,1780255101000,1592.39,8.994e-05,2]
[423594818,1780255129000,150.0,8.832e-05,2]
[423594819,1780255156000,1000.0,8.642e-05,2]
[423594822,1780255190000,150.0,8.773e-05,2]
[423594823,1780255205000,200.0,8.604e-05,2]
[423594824,1780255238000,547.0,0.0003013,120]
[423594825,1780255252000,150.0,8.773e-05,2]
[423594827,1780255304000,318.12,8.554e-05,2]
[423594828,1780255313000,150.0,8.773e-05,2]
[423594829,1780255325000,5760.98,8.553e-05,2]
[423594832,1780255373000,150.0,8.773e-05,2]
[423594833,1780255415000,2000.0,8.365e-05,2]
[423594834,1780255435000,150.0,8.773e-05,2]
[423594837,1780255496000,150.0,8.773e-05,2]
[423594840,1780255518000,5158.03,8.368e-05,2]
[423594843,1780255534000,-1592.39,9.094e-05,2]
[423594842,1780255534000,-250.0,9.069e-05,2]
[423594844,1780255534000,-250.0,9.096e-05,2]
[423594850,1780255534000,-300.0,9.221e-05,2]
[423594845,1780255534000,-229.09818281,9.105e-05,2]
[423594846,1780255534000,-150.0,9.105e-05,2]
[423594848,1780255534000,-1592.39,9.144e-05,2]
[423594841,1780255534000,-1592.39,9.044e-05,2]
[423594847,1780255534000,-150.0,9.133e-05,2]
[423594855,1780255534000,-1200.0,9.222e-05,2]
[423594851,1780255534000,-1200.0,9.221e-05,2]
[423594852,1780255534000,-300.0,9.221e-05,2]
[423594854,1780255534000,-150.0,9.222e-05,2]
[423594853,1780255534000,-300.0,9.221e-05,2]
[423594857,1780255534000,-500.0,9.223e-05,2]
[423594856,1780255534000,-1000.0,9.223e-05,2]
[423594858,1780255534000,-500.0,9.223e-05,2]
[423594859,1780255534000,-500.0,9.223e-05,2]
[423594849,1780255534000,-1592.39,9.194e-05,2]
[423594870,1780255535000,-500.0,9.223e-05,2]
[423594869,1780255535000,-500.0,9.223e-05,2]
[423594871,1780255535000,-500.0,9.223e-05,2]
[423594876,1780255535000,-500.0,9.223e-05,2]
[423594872,1780255535000,-500.0,9.223e-05,2]
[423594873,1780255535000,-500.0,9.223e-05,2]
[423594874,1780255535000,-500.0,9.223e-05,2]
[423594867,1780255535000,-500.0,9.223e-05,2]
[423594875,1780255535000,-500.0,9.223e-05,2]
[423594866,1780255535000,-500.0,9.223e-05,2]
[423594863,1780255535000,-500.0,9.223e-05,2]
[423594865,1780255535000,-500.0,9.223e-05,2]
[423594864,1780255535000,-500.0,9.223e-05,2]
[423594862,1780255535000,-500.0,9.223e-05,2]
[423594861,1780255535000,-500.0,9.223e-05,2]
[423594860,1780255535000,-500.0,9.223e-05,2]
[423594868,1780255535000,-500.0,9.223e-05,2]
[423594877,1780255535000,-500.0,9.223e-05,2]
[423594889,1780255535000,-500.0,9.223e-05,2]
[423594881,1780255535000,-500.0,9.223e-05,2]
[423594896,1780255535000,-500.0,9.223e-05,2]
[423594895,1780255535000,-500.0,9.223e-05,2]
[423594894,1780255535000,-500.0,9.223e-05,2]
[423594893,1780255535000,-500.0,9.223e-05,2]
[423594891,1780255535000,-500.0,9.223e-05,2]
[423594892,1780255535000,-500.0,9.223e-05,2]
[423594890,1780255535000,-500.0,9.223e-05,2]
[423594886,1780255535000,-500.0,9.223e-05,2]
[423594879,1780255535000,-500.0,9.223e-05,2]
[423594887,1780255535000,-500.0,9.223e-05,2]
[423594884,1780255535000,-500.0,9.223e-05,2]
[423594885,1780255535000,-500.0,9.223e-05,2]
[423594883,1780255535000,-500.0,9.223e-05,2]
[423594882,1780255535000,-500.0,9.223e-05,2]
[423594878,1780255535000,-500.0,9.223e-05,2]
[423594880,1780255535000,-500.0,9.223e-05,2]
[423594888,1780255535000,-500.0,9.223e-05,2]
[423594914,1780255536000,-500.0,9.223e-05,2]
[423594911,1780255536000,-600.0,9.223e-05,2]
[423594910,1780255536000,-500.0,9.223e-05,2]
[423594909,1780255536000,-500.0,9.223e-05,2]
[423594907,1780255536000,-500.0,9.223e-05,2]
[423594908,1780255536000,-500.0,9.223e-05,2]
[423594905,1780255536000,-500.0,9.223e-05,2]
[423594906,1780255536000,-500.0,9.223e-05,2]
[423594900,1780255536000,-500.0,9.223e-05,2]
[423594903,1780255536000,-500.0,9.223e-05,2]
[423594902,1780255536000,-520.16677354,9.223e-05,2]
[423594901,1780255536000,-500.0,9.223e-05,2]
[423594899,1780255536000,-500.0,9.223e-05,2]
[423594898,1780255536000,-500.0,9.223e-05,2]
[423594897,1780255536000,-500.0,9.223e-05,2]
[423594912,1780255536000,-500.0,9.223e-05,2]
[423594904,1780255536000,-500.0,9.223e-05,2]
[423594915,1780255536000,-500.0,9.223e-05,2]
[423594913,1780255536000,-500.0,9.223e-05,2]
[423594918,1780255536000,-500.0,9.223e-05,2]
[423594917,1780255536000,-500.0,9.223e-05,2]
[423594933,1780255536000,-1398.44889018,9.223e-05,2]
[423594934,1780255536000,-1398.44889018,9.223e-05,2]
[423594931,1780255536000,-500.0,9.223e-05,2]
[423594932,1780255536000,-179.70427313,9.223e-05,2]
[423594927,1780255536000,-500.0,9.223e-05,2]
[423594929,1780255536000,-500.0,9.223e-05,2]
[423594928,1780255536000,-500.0,9.223e-05,2]
[423594925,1780255536000,-500.0,9.223e-05,2]
[423594930,1780255536000,-500.0,9.223e-05,2]
[423594926,1780255536000,-500.0,9.223e-05,2]
[423594924,1780255536000,-500.0,9.223e-05,2]
[423594920,1780255536000,-500.0,9.223e-05,2]
[423594919,1780255536000,-500.0,9.223e-05,2]
[423594916,1780255536000,-500.0,9.223e-05,2]
[423594922,1780255536000,-500.0,9.223e-05,2]
[423594923,1780255536000,-500.0,9.223e-05,2]
[423594921,1780255536000,-500.0,9.223e-05,2]
[423594947,1780255537000,-150.0,9.223e-05,2]
[423594952,1780255537000,-1592.39,9.293e-05,2]
[423594955,1780255537000,-150.0,9.387e-05,2]
[423594953,1780255537000,-150.0,9.314e-05,2]
[423594950,1780255537000,-150.0,9.224e-05,2]
[423594951,1780255537000,-1592.39,9.243e-05,2]
[423594948,1780255537000,-150.0,9.223e-05,2]
[423594949,1780255537000,-134017.59858197,9.224e-05,2]
[423594946,1780255537000,-500.0,9.223e-05,2]
[423594945,1780255537000,-4469.1410805,9.223e-05,2]
[423594935,1780255537000,-1398.44889018,9.223e-05,2]
[423594944,1780255537000,-4469.14108051,9.223e-05,2]
[423594942,1780255537000,-4469.14108051,9.223e-05,2]
[423594941,1780255537000,-4469.14108051,9.223e-05,2]
[423594940,1780255537000,-1398.44889018,9.223e-05,2]
[423594939,1780255537000,-1398.44889018,9.223e-05,2]
[423594937,1780255537000,-1398.44889018,9.223e-05,2]
[423594938,1780255537000,-1398.44889018,9.223e-05,2]
[423594936,1780255537000,-1398.44889018,9.223e-05,2]
[423594954,1780255537000,-1592.39,9.343e-05,2]
[423594943,1780255537000,-4469.14108051,9.223e-05,2]
[423594956,1780255537000,-1592.39,9.393e-05,2]
[423594979,1780255537000,-150.0,9.616e-05,2]
[423594959,1780255537000,-1592.39,9.443e-05,2]
[423594980,1780255537000,-150.0,9.616e-05,2]
[423594978,1780255537000,-150.0,9.616e-05,2]
[423594977,1780255537000,-150.0,9.616e-05,2]
[423594976,1780255537000,-150.0,9.616e-05,2]
[423594975,1780255537000,-150.0,9.616e-05,2]
[423594957,1780255537000,-150.0,9.405e-05,2]
[423594973,1780255537000,-150.0,9.616e-05,2]
[423594972,1780255537000,-150.0,9.616e-05,2]
[423594968,1780255537000,-26425.63978443,9.58e-05,2]
[423594970,1780255537000,-1592.39,9.592e-05,2]
[423594974,1780255537000,-150.0,9.616e-05,2]
[423594967,1780255537000,-2857.9,9.563e-05,2]
[423594971,1780255537000,-150.0,9.616e-05,2]
[423594964,1780255537000,-13704.40043812,9.508e-05,2]
[423594966,1780255537000,-36969.13798593,9.549e-05,2]
[423594963,1780255537000,-500.0,9.497e-05,2]
[423594965,1780255537000,-1592.39,9.542e-05,2]
[423594962,1780255537000,-150.0,9.495e-05,2]
[423594958,1780255537000,-2000.0,9.41e-05,2]
[423594960,1780255537000,-13704.40043812,9.443e-05,2]
[423594961,1780255537000,-1592.39,9.493e-05,2]
[423594969,1780255537000,-175.0,9.586e-05,2]
[423594988,1780255538000,-160.0,9.771e-05,2]
[423594987,1780255538000,-500.0,9.771e-05,2]
[423594989,1780255538000,-2500.0,9.775e-05,2]
[423594986,1780255538000,-150.0,9.759e-05,2]
[423594990,1780255538000,-4176.1831,9.775e-05,2]
[423594983,1780255538000,-1592.39,9.692e-05,2]
[423594984,1780255538000,-1592.39,9.742e-05,2]
[423594982,1780255538000,-150.0,9.688e-05,2]
[423594981,1780255538000,-1592.39,9.642e-05,2]
[423594985,1780255538000,-150.0,9.75e-05,2]
[423594991,1780255538000,-5000.0,9.775e-05,2]
[423594994,1780255538000,-2155.42,9.825e-05,2]
[423594993,1780255538000,-4995.0,9.825e-05,2]
[423595003,1780255538000,-320.77036461,9.874e-05,2]
[423595000,1780255538000,-215.94017068,9.874e-05,2]
[423595002,1780255538000,-500.0,9.874e-05,2]
[423594999,1780255538000,-297.917,9.854e-05,2]
[423595001,1780255538000,-500.0,9.874e-05,2]
[423594996,1780255538000,-150.0,9.83e-05,2]
[423594997,1780255538000,-150.0,9.83e-05,2]
[423594995,1780255538000,-4310.84,9.825e-05,2]
[423595004,1780255538000,-278251.43638268,9.875e-05,2]
[423594998,1780255538000,-1592.39,9.841e-05,2]
[423594992,1780255538000,-1592.39,9.792e-05,2]
[423595005,1780255556000,150.0,8.773e-05,2]
[423595007,1780255619000,150.0,8.894e-05,2]
[423595010,1780255679000,150.0,8.854e-05,2]
[423595013,1780255689000,233.33,8.642e-05,2]
[423595012,1780255689000,233.33,7.922e-05,2]
[423595011,1780255689000,233.33,7.202e-05,2]
[423595014,1780255709000,171.61,0.00028973,120]
[423595015,1780255740000,150.0,8.805e-05,2]
[423595016,1780255743000,2000.0,0.00030136,120]
[423595017,1780255750000,200.0,9.6e-05,3]
[423595018,1780255752000,500.0,9.7e-05,3]
[423595027,1780255754000,800.0,9.8e-05,3]
[423595028,1780255756000,1000.0,9.9e-05,3]
[423595029,1780255757000,1426.18,8.986e-05,2]
[423595030,1780255758000,-5597.5245834,9.077e-05,2]
[423595031,1780255759000,1300.0,0.0001,3]
[423595032,1780255762000,500.0,8.986e-05,2]
[423595033,1780255769000,350.0,9.863e-05,3]
[423595034,1780255802000,150.0,8.805e-05,2]
[423595035,1780255809000,3602.36,8.978e-05,2]
[423595056,1780255832000,-1151.0,9.168e-05,2]
[423595052,1780255832000,-212.01391994,9.096e-05,2]
[423595051,1780255832000,-168.9054166,9.077e-05,2]
[423595065,1780255832000,-172707.74754572,9.775e-05,2]
[423595055,1780255832000,-1898.41,9.149e-05,2]
[423595054,1780255832000,-1852.42,9.128e-05,2]
[423595058,1780255832000,-165.57,9.249e-05,2]
[423595053,1780255832000,-1713.04608006,9.096e-05,2]
[423595057,1780255832000,-2213.02,9.169e-05,2]
[423595066,1780255832000,-6360.98465129,9.775e-05,2]
[423595063,1780255832000,-5000.0,9.775e-05,2]
[423595064,1780255832000,-2500.0,9.775e-05,2]
[423595061,1780255832000,-300.0,9.774e-05,2]
[423595059,1780255832000,-233.33,9.362e-05,2]
[423595060,1780255832000,-250.0,9.548e-05,2]
[423595062,1780255832000,-150.0,9.774e-05,2]
[423595095,1780255838000,-10000.0,9.875e-05,2]
[423595100,1780255838000,-150.0,9.901e-05,2]
[423595097,1780255838000,-150.0,9.884e-05,2]
[423595099,1780255838000,-1592.39,9.891e-05,2]
[423595102,1780255838000,-151.0,9.972e-05,2]
[423595109,1780255838000,-180.75711372,0.0001,2]
[423595098,1780255838000,-150.0,9.884e-05,2]
[423595101,1780255838000,-1592.39,9.941e-05,2]
[423595103,1780255838000,-150.0,9.973e-05,2]
[423595104,1780255838000,-150.0,9.973e-05,2]
[423595105,1780255838000,-1649.78597168,9.983e-05,2]
[423595092,1780255838000,-1320931.26780299,9.775e-05,2]
[423595107,1780255838000,-180.75711372,0.0001,2]
[423595106,1780255838000,-250.0,9.985e-05,2]
[423595111,1780255838000,-973.29831948,0.0001,2]
[423595122,1780255838000,-250.0,0.00010144,2]
[423595121,1780255838000,-150.0,0.00010115,2]
[423595123,1780255838000,-150.0,0.00010151,2]
[423595110,1780255838000,-525.01585047,0.0001,2]
[423595108,1780255838000,-180.75711372,0.0001,2]
[423595094,1780255838000,-2219806.62734885,9.875e-05,2]
[423595088,1780255838000,-500.0,9.774e-05,2]
[423595086,1780255838000,-179.98710467,9.774e-05,2]
[423595112,1780255838000,-435.61256359,0.0001,2]
[423595073,1780255838000,-154.06,9.148e-05,2]
[423595075,1780255838000,-500.0,9.774e-05,2]
[423595076,1780255838000,-500.0,9.774e-05,2]
[423595082,1780255838000,-500.0,9.774e-05,2]
[423595083,1780255838000,-500.0,9.774e-05,2]
[423595080,1780255838000,-500.0,9.774e-05,2]
[423595079,1780255838000,-500.0,9.774e-05,2]
[423595078,1780255838000,-442.79850675,9.774e-05,2]
[423595074,1780255838000,-259.06067942,9.774e-05,2]
[423595077,1780255838000,-424.53925522,9.774e-05,2]
[423595084,1780255838000,-500.0,9.774e-05,2]
[423595081,1780255838000,-317.94915496,9.774e-05,2]
[423595085,1780255838000,-500.0,9.774e-05,2]
[423595089,1780255838000,-500.0,9.774e-05,2]
[423595091,1780255838000,-500.0,9.774e-05,2]
[423595087,1780255838000,-500.0,9.774e-05,2]
[423595090,1780255838000,-500.0,9.774e-05,2]
[423595093,1780255838000,-151.0,9.872e-05,2]
[423595096,1780255838000,-195.20571003,9.875e-05,2]
[423595115,1780255838000,-150.0,0.00010017,2]
[423595137,1780255838000,-150.0,0.00010418,2]
[423595114,1780255838000,-165.57,0.00010013,2]
[423595113,1780255838000,-435.61256359,0.0001,2]
[423595144,1780255838000,-150.0,0.00010471,2]
[423595142,1780255838000,-7588.02,0.00010462,2]
[423595143,1780255838000,-150.0,0.00010471,2]
[423595147,1780255838000,-150.0,0.00010542,2]
[423595146,1780255838000,-259.23236154,0.00010526,7]
[423595149,1780255838000,-150.0,0.00010614,2]
[423595145,1780255838000,-262.44765209,0.00010526,7]
[423595152,1780255838000,-150.15999013,0.00010685,2]
[423595139,1780255838000,-355.81,0.00010431,2]
[423595151,1780255838000,-150.0,0.00010685,2]
[423595162,1780255838000,-1331607.17619318,0.000107,2]
[423595153,1780255838000,-202.90389691,0.00010685,2]
[423595157,1780255838000,-280.52472886,0.00010685,2]
[423595159,1780255838000,-150.0,0.00010685,2]
[423595160,1780255838000,-435.61256359,0.0001069,2]
[423595158,1780255838000,-150.0,0.00010685,2]
[423595155,1780255838000,-181.56728378,0.00010685,2]
[423595161,1780255838000,-243.815857,0.00010697,2]
[423595156,1780255838000,-150.68679634,0.00010685,2]
[423595154,1780255838000,-150.0,0.00010685,2]
[423595141,1780255838000,-2000.0,0.00010456,2]
[423595150,1780255838000,-150.0,0.00010685,2]
[423595140,1780255838000,-500.0,0.00010431,2]
[423595117,1780255838000,-209.17060647,0.00010043,2]
[423595116,1780255838000,-426.48028601,0.00010017,2]
[423595119,1780255838000,-150.0,0.00010044,2]
[423595118,1780255838000,-150.0,0.00010044,2]
[423595120,1780255838000,-233.33,0.00010083,2]
[423595125,1780255838000,-150.0,0.00010151,2]
[423595126,1780255838000,-150.0,0.00010151,2]
[423595148,1780255838000,-150.0,0.00010551,2]
[423595127,1780255838000,-150.0,0.00010186,2]
[423595135,1780255838000,-150.0,0.00010329,2]
[423595136,1780255838000,-150.0,0.000104,2]
[423595128,1780255838000,-215.61611719,0.00010217,2]
[423595129,1780255838000,-150.0,0.00010258,2]
[423595132,1780255838000,-525.01585045,0.00010288,2]
[423595130,1780255838000,-150.0,0.00010258,2]
[423595131,1780255838000,-150.0,0.00010284,2]
[423595133,1780255838000,-207749.67860328,0.000103,2]
[423595134,1780255838000,-150.0,0.00010329,2]
[423595138,1780255838000,-150.0,0.00010418,2]
[423595124,1780255838000,-150.0,0.00010151,2]
[423595169,1780255840000,-7348.94334271,0.000107,2]
[423595557,1780255843000,-3200.47450081,0.000107,2]
[423595552,1780255843000,-10578.63273878,0.000107,2]
[423595554,1780255843000,-10525.95819999,0.000107,2]
[423595563,1780255843000,-518.34488973,0.000107,2]
[423595559,1780255843000,-4080.93407604,0.000107,2]
[423595573,1780255843000,-316.4671945,0.000107,2]
[423595569,1780255843000,-283903.31364243,0.000107,2]
[423595571,1780255843000,-804.8152909,0.000107,2]
[423595566,1780255843000,-486.395,0.000107,2]
[423595576,1780255843000,-73435.00000002,0.000107,2]
[423595578,1780255843000,-5358.0,0.000107,2]
[423595894,1780255846000,-1021604.59032986,0.000107,2]
[423595891,1780255846000,-279.49564613,0.000107,2]
[423595889,1780255846000,-428.63008229,0.000107,2]
[423595871,1780255846000,-12479.12194748,0.000107,2]
[423595869,1780255846000,-8116.39999945,0.000107,2]
[423595874,1780255846000,-9433.41636287,0.000107,2]
[423595866,1780255846000,-13147.28206989,0.000107,2]
[423595864,1780255846000,-3196.23857581,0.000107,2]
[423595862,1780255846000,-10960.95740737,0.000107,2]
[423596239,1780255863000,150.0,8.805e-05,2]
[423596240,1780255907000,262.44765209,9.531e-05,7]
[423596242,1780255960000,326.7692456,8.974e-05,2]
[423596247,1780256027000,259.23236154,9.531e-05,7]
[423596248,1780256042000,283.0,0.0003013,120]
[423596249,1780256046000,150.0,8.917e-05,2]
[423596251,1780256061000,254.87,8.997e-05,2]
[423596250,1780256061000,254.87,8.947e-05,2]
[423596252,1780256092000,200.0,8.685e-05,2]
[423596253,1780256103000,221.25171956,0.00030137,120]
[423596255,1780256193000,2000.0,8.642e-05,2]
[423596256,1780256220000,712.0,0.0003013,120]
[423596257,1780256223000,349.0,0.0003013,120]
[423596258,1780256225000,14172.0,0.0003013,120]
[423596259,1780256225000,13158.3,0.0003013,120]
[423596261,1780256355000,355.81,8.596e-05,2]
[423596262,1780256468000,1106.51,8.584e-05,2]
[423596263,1780256550000,166.79,8.827e-05,2]
[423596264,1780256584000,500.0,8.563e-05,2]
[423596266,1780256691000,730.89,8.568e-05,2]
[423596268,1780256731000,3201.015038,8.978e-05,2]
[423596269,1780256769000,1538.94,8.532e-05,2]
[423596270,1780256773000,155.56,6.826e-05,2]
[423596271,1780256773000,155.56,8.532e-05,2]
[423596275,1780256810000,60196.8042836,8.527e-05,2]
[423596274,1780256810000,81773.8857164,8.527e-05,2]
[423596276,1780256835000,157.22,8.52e-05,2]
[423596277,1780256837000,1400.52537883,8.527e-05,2]
[423596279,1780256878000,4229.95,8.525e-05,2]
[423596282,1780256940000,2000.0,0.00030136,120]
[423596352,1780256991000,271.31,0.00030082,120]
[423596382,1780257032000,-26.02001985,9.096e-05,2]
[423596379,1780257032000,-239.46284604,9.074e-05,2]
[423596376,1780257032000,-150.0,9.074e-05,2]
[423596377,1780257032000,-150.0,9.074e-05,2]
[423596378,1780257032000,-150.0,9.074e-05,2]
[423596384,1780257032000,-150.0,9.133e-05,2]
[423596383,1780257032000,-228.84998015,9.096e-05,2]
[423596381,1780257032000,-287.50586338,9.074e-05,2]
[423596387,1780257032000,-116.04001985,9.146e-05,2]
[423596385,1780257032000,-254.87,9.145e-05,2]
[423596396,1780257032000,-150.0,9.218e-05,2]
[423596380,1780257032000,-150.0,9.074e-05,2]
[423596375,1780257032000,-150.0,9.074e-05,2]
[423596372,1780257032000,-150.0,9.074e-05,2]
[423596373,1780257032000,-150.0,9.074e-05,2]
[423596399,1780257032000,-150.0,9.218e-05,2]
[423596371,1780257032000,-96.93268767,9.074e-05,2]
[423596370,1780257032000,-53.06731233,9.074e-05,2]
[423596369,1780257032000,-300.0,9.073e-05,2]
[423596368,1780257032000,-155.56693884,9.073e-05,2]
[423596367,1780257032000,-750.01,9.073e-05,2]
[423596366,1780257032000,-294.42306116,9.073e-05,2]
[423596364,1780257032000,-328.0,9.073e-05,2]
[423596365,1780257032000,-300.0,9.073e-05,2]
[423596363,1780257032000,-254.87,9.046e-05,2]
[423596361,1780257032000,-250.0,9.034e-05,2]
[423596362,1780257032000,-214.1315269,9.044e-05,2]
[423596374,1780257032000,-150.0,9.074e-05,2]
[423596401,1780257032000,-150.0,9.224e-05,2]
[423596402,1780257032000,-254.87,9.244e-05,2]
[423596393,1780257032000,-254.87,9.195e-05,2]
[423596392,1780257032000,-150.0,9.193e-05,2]
[423596433,1780257032000,-1254.41808677,9.573e-05,2]
[423596432,1780257032000,-154791.38171613,9.573e-05,2]
[423596430,1780257032000,-16199.91262499,9.573e-05,2]
[423596431,1780257032000,-42392.08509959,9.573e-05,2]
[423596426,1780257032000,-150.0,9.506e-05,2]
[423596427,1780257032000,-254.87,9.542e-05,2]
[423596428,1780257032000,-1000.0,9.572e-05,2]
[423596420,1780257032000,-150.0,9.41e-05,2]
[423596419,1780257032000,-287.50586336,9.407e-05,2]
[423596429,1780257032000,-166990.75021096,9.573e-05,2]
[423596421,1780257032000,-4277.13,9.418e-05,2]
[423596423,1780257032000,-254.87,9.443e-05,2]
[423596425,1780257032000,-150.0,9.506e-05,2]
[423596424,1780257032000,-254.87,9.492e-05,2]
[423596410,1780257032000,-150.0,9.362e-05,2]
[423596422,1780257032000,-150.0,9.434e-05,2]
[423596403,1780257032000,-1307.09510922,9.284e-05,2]
[423596413,1780257032000,-254.87,9.393e-05,2]
[423596415,1780257032000,-150.0,9.405e-05,2]
[423596417,1780257032000,-297.0,9.405e-05,2]
[423596405,1780257032000,-254.87,9.294e-05,2]
[423596391,1780257032000,-33.95998015,9.146e-05,2]
[423596406,1780257032000,-166.79,9.313e-05,2]
[423596408,1780257032000,-150.0,9.326e-05,2]
[423596411,1780257032000,-150.0,9.362e-05,2]
[423596409,1780257032000,-254.87,9.343e-05,2]
[423596407,1780257032000,-150.0,9.314e-05,2]
[423596404,1780257032000,-150.0,9.29e-05,2]
[423596451,1780257038000,-500.0,9.573e-05,2]
[423596453,1780257038000,-75644.1661,9.574e-05,2]
[423596455,1780257038000,-150.0,9.578e-05,2]
[423596452,1780257038000,-500.0,9.573e-05,2]
[423596454,1780257038000,-1001.66944802,9.575e-05,2]
[423596458,1780257038000,-157.22,9.585e-05,2]
[423596457,1780257038000,-150.0,9.578e-05,2]
[423596460,1780257038000,-150.0,9.616e-05,2]
[423596462,1780257038000,-730.89,9.638e-05,2]
[423596464,1780257038000,-254.87,9.641e-05,2]
[423596465,1780257038000,-150.0,9.65e-05,2]